bitfinex/quotes_SOLUSD_20260108
["timestamp","ask_amount","ask_price","bid_price","bid_amount"]
[1767854725663,2.23641582,135.48,135.43,0.67381949]
[1767854725867,4.88383537,135.47,135.43,0.67381949]
[1767854726272,14.97553347,135.47,135.43,0.61381949]
[1767854726472,10.0916981,135.47,135.43,0.61381949]
[1767854727068,10.0916981,135.47,135.41,13.48]
[1767854727069,2.71210982,135.45,135.41,13.48]
[1767854727967,7.38272945,135.46,135.41,23.10132593]
[1767854728168,7.8561956,135.46,135.41,23.10132593]
[1767854728369,7.8561956,135.46,135.42,0.67381949]
[1767854728591,7.38272945,135.46,135.42,0.67381949]
[1767854728887,7.38272945,135.46,135.42,2.91023531]
[1767854729095,0.69850104,135.47,135.43,0.67381949]
[1767854729399,8.08022756,135.47,135.43,0.67381949]
[1767854729887,0.69850104,135.49,135.44,0.67381949]
[1767854730074,0.69684469,135.47,135.44,0.61381949]
[1767854731078,8.07862994,135.47,135.44,0.61381949]
[1767854732571,8.07862994,135.47,135.44,0.55381949]
[1767854732773,8.07862994,135.47,135.44,0.49381949]
[1767854733065,8.08564931,135.48,135.44,2.23641582]
[1767854734892,8.08564931,135.48,135.45,0.69704762]
[1767854735072,7.38121856,135.48,135.45,0.63704762]
[1767854735478,8.08485358,135.5,135.45,2.23641582]
[1767854735673,10.3212694,135.5,135.45,2.23641582]
[1767854736773,10.3212694,135.5,135.45,9.61902022]
[1767854736973,10.3212694,135.5,135.46,0.69704762]
[1767854738180,10.3212694,135.5,135.46,0.63704762]
[1767854738399,2.94084657,135.49,135.46,0.63704762]
[1767854738624,2.94084657,135.49,135.44,2.23641582]
[1767854738625,0.70443075,135.47,135.43,2.23641582]
[1767854739673,8.08641507,135.47,135.43,2.23641582]
[1767854740191,7.38198432,135.47,135.44,0.69704762]
[1767854740495,7.38198432,135.47,135.45,0.69704762]
[1767854740688,7.38198432,135.47,135.45,0.63704762]
[1767854741900,0.70443075,135.46,135.42,13.48]
[1767854742193,0.70443075,135.46,135.43,2.23641582]
[1767854742394,7.38198432,135.47,135.43,2.23641582]
[1767854742599,0.70443075,135.46,135.43,2.23641582]
[1767854742771,7.38198432,135.47,135.43,2.23641582]
[1767854742972,8.08641507,135.47,135.43,2.23641582]
[1767854743171,8.08641507,135.47,135.41,13.48]
[1767854743400,8.08641507,135.47,135.43,2.23641582]
[1767854743998,8.08641507,135.47,135.43,2.93346344]
[1767854744306,8.08641507,135.47,135.44,0.69704762]
[1767854744604,8.08641507,135.47,135.44,0.63704762]
[1767854745007,0.70443075,135.46,135.42,2.23641582]
[1767854745509,8.08641507,135.47,135.42,2.23641582]
[1767854746480,8.08641507,135.47,135.43,0.69704762]
[1767854747995,13.76432314,135.5,135.41,16.41346344]
[1767854747996,0.70443075,135.45,135.41,16.41346344]
[1767854749506,0.70443075,135.45,135.41,15.71641582]
[1767854750112,7.38283663,135.45,135.42,0.69704762]
[1767854751612,0.70443075,135.45,135.42,0.69704762]
[1767854753019,8.08726438,135.45,135.42,0.69704762]
[1767854753592,8.08726438,135.45,135.42,0.63704762]
[1767854756314,0.70443075,135.44,135.41,16.41346344]
[1767854756713,8.08726438,135.45,135.42,0.69704762]
[1767854757819,8.08692899,135.46,135.43,2.93346344]
[1767854758715,0.70443075,135.45,135.43,2.23641582]
[1767854759016,0.70443075,135.45,135.42,0.69704762]
[1767854759017,0.70443075,135.47,135.44,2.93346344]
[1767854759221,0.70443075,135.47,135.44,2.23641582]
[1767854759707,0.70443075,135.47,135.44,2.93346344]
[1767854760322,7.38069003,135.49,135.46,2.93346344]
[1767854760619,8.08461669,135.5,135.47,2.23641582]
[1767854761017,0.70443075,135.49,135.44,20.86312366]
[1767854761233,0.70443075,135.49,135.45,2.23641582]
[1767854762013,8.08527098,135.49,135.45,2.23641582]
[1767854762214,8.08527098,135.49,135.44,20.86331634]
[1767854762416,8.08527098,135.49,135.45,2.88261852]
[1767854763424,0.66096214,135.48,135.44,16.36261852]
[1767854763726,0.66096214,135.48,135.44,2.88261852]
[1767854764023,0.66096214,135.47,135.44,2.88261852]
[1767854764320,0.66096214,135.47,135.44,0.6462027]
[1767854764716,0.66096214,135.47,135.43,2.23641582]
[1767854765627,0.66096214,135.46,135.43,2.23641582]
[1767854766209,0.66096214,135.46,135.43,2.88261852]
[1767854766620,8.04311529,135.47,135.43,2.88261852]
[1767854766926,8.04311529,135.47,135.44,2.88261852]
[1767854767324,0.66096214,135.47,135.44,2.88261852]
[1767854768655,8.04272377,135.47,135.44,2.88261852]
[1767854771711,0.1,135.53,135.47,0.67607111]
[1767854771919,0.66096214,135.51,135.47,2.82562421]
[1767854772110,0.66096214,135.51,135.47,0.58920839]
[1767854772828,0.66096214,135.5,135.47,0.58920839]
[1767854773031,0.66096214,135.5,135.46,2.88261852]
[1767854773232,0.66096214,135.5,135.46,2.23641582]
[1767854773624,0.66096214,135.5,135.46,9.61831696]
[1767854773933,0.66096214,135.5,135.47,2.91248693]
[1767854774510,0.66096214,135.5,135.47,2.23641582]
[1767854774705,0.66096214,135.5,135.46,10.29438807]
[1767854775730,0.66096214,135.5,135.46,9.61831696]
[1767854776030,0.66096214,135.5,135.47,0.67607111]
[1767854776836,0.66096214,135.5,135.47,2.91248693]
[1767854778514,0.66096214,135.5,135.47,4.16606179]
[1767854779918,0.66096214,135.5,135.48,3.48999068]
[1767854780235,0.66096214,135.51,135.48,3.48999068]
[1767854781536,0.66096214,135.51,135.48,4.16606179]
[1767854782440,8.04063916,135.51,135.48,3.48999068]
[1767854782853,0.66096214,135.5,135.45,14.15607111]
[1767854783018,0.66096214,135.5,135.46,3.48999068]
[1767854783419,0.66096214,135.5,135.47,3.48999068]
[1767854785039,0.66096214,135.5,135.47,4.16606179]
[1767854789658,0.66096214,135.5,135.47,0.67607111]
[1767854789843,0.66096214,135.5,135.47,4.16606179]
[1767854792251,0.33764818,135.46,135.44,3.48999068]
[1767854792455,0.74112211,135.47,135.44,3.48999068]
[1767854792759,0.7373622,135.47,135.44,3.48999068]
[1767854793249,0.7373622,135.47,135.44,4.19454079]
[1767854793440,0.7373622,135.47,135.44,3.48999068]
[1767854795261,0.7373622,135.47,135.45,3.48999068]
[1767854795462,0.7373622,135.47,135.45,4.16202379]
[1767854795463,0.027483,135.47,135.45,4.16202379]
[1767854796261,0.33764818,135.48,135.45,4.13454079]
[1767854797465,7.71881407,135.48,135.45,4.13454079]
[1767854797841,7.71881407,135.48,135.45,0.70455011]
[1767854799161,7.71881407,135.48,135.45,4.19454079]
[1767854800363,7.38079889,135.49,135.46,0.70455011]
[1767854800536,7.71844707,135.49,135.46,0.70455011]
[1767854800931,7.71844707,135.49,135.45,3.48999068]
[1767854801136,7.71844707,135.49,135.45,4.19454079]
[1767854804464,0.33764818,135.49,135.46,0.70455011]
[1767854804646,11.58384372,135.5,135.46,0.67141283]
[1767854804839,0.71363911,135.5,135.46,3.48999068]
[1767854805039,0.71363911,135.51,135.47,3.48999068]
[1767854805242,5.60643305,135.51,135.47,3.42999068]
[1767854805450,0.71363911,135.51,135.47,3.42999068]
[1767854806079,0.71363911,135.51,135.48,3.48999068]
[1767854806362,8.19260165,135.53,135.49,3.48999068]
[1767854806556,4.8934168,135.52,135.49,4.19454079]
[1767854807156,12.64308541,135.52,135.48,4.19454079]
[1767854807454,7.74966861,135.52,135.48,4.19454079]
[1767854807758,0.71020726,135.51,135.48,0.70455011]
[1767854807961,8.09285364,135.52,135.48,4.19454079]
[1767854809046,8.09285364,135.52,135.48,0.70455011]
[1767854809240,4.20019794,135.5,135.45,14.18455011]
[1767854809560,0.37385162,135.49,135.45,17.67454079]
[1767854810858,0.37385162,135.49,135.46,0.70455011]
[1767854811447,0.37385162,135.49,135.46,4.19454079]
[1767854811746,8.0940321,135.5,135.46,4.19454079]
[1767854812566,0.71363911,135.52,135.48,4.19454079]
[1767854812765,0.71363911,135.52,135.48,3.48999068]
[1767854812965,0.37045408,135.51,135.48,3.48999068]
[1767854813866,0.71020726,135.5,135.48,3.48999068]
[1767854814163,3.87431382,135.53,135.45,13.48]
[1767854814164,0.1,135.53,135.5,0.70455011]
[1767854814362,5.36687908,135.53,135.5,0.67759103]
[1767854814567,12.74555233,135.53,135.49,3.48999068]
[1767854814765,7.84912733,135.53,135.48,3.48999068]
[1767854814957,7.84912733,135.53,135.49,3.48999068]
[1767854815153,0.71363911,135.52,135.49,3.48999068]
[1767854815462,0.71363911,135.52,135.48,3.48999068]
[1767854815867,8.09290459,135.52,135.48,3.48999068]
[1767854816067,0.45010047,135.51,135.47,16.96999068]
[1767854816448,0.45010047,135.51,135.48,0.70455011]
[1767854816650,8.09290459,135.52,135.48,4.19454079]
[1767854816859,0.45010047,135.51,135.47,14.18455011]
[1767854817063,5.34788364,135.51,135.47,17.67454079]
[1767854817259,5.34788364,135.51,135.48,0.70455011]
[1767854817446,5.34788364,135.51,135.48,0.64455011]
[1767854819071,12.72782634,135.51,135.47,13.48]
[1767854819271,7.83004317,135.51,135.47,16.96999068]
[1767854819569,7.83004317,135.51,135.47,17.67454079]
[1767854821374,0.50950047,135.49,135.46,0.70455011]
[1767854821580,0.50950047,135.49,135.45,0.70455011]
[1767854821781,5.41041296,135.49,135.45,4.19454079]
[1767854823276,0.65626561,135.48,135.45,4.19454079]
[1767854823464,0.65626561,135.48,135.45,0.70455011]
[1767854823673,0.65626561,135.48,135.45,4.19454079]
[1767854823869,8.03745266,135.48,135.45,4.19454079]
[1767854824662,0.65536596,135.46,135.42,0.68665616]
[1767854824864,0.56719088,135.45,135.42,0.68665616]
[1767854825184,0.53719089,135.45,135.42,0.68665616]
[1767854825560,7.38261819,135.46,135.42,0.68665616]
[1767854825782,10.87260887,135.46,135.42,0.68665616]
[1767854826188,10.87260887,135.46,135.41,11.56160163]
[1767854827070,0.53660024,135.44,135.41,4.17664684]
[1767854827567,0.53660024,135.44,135.4,3.48999068]
[1767854827972,0.53660024,135.44,135.4,4.17664684]
[1767854828175,0.53660024,135.44,135.39,20.86573964]
[1767854828176,0.53660024,135.44,135.39,17.65664684]
[1767854828389,0.53778492,135.42,135.39,14.16665616]
[1767854828681,0.53660024,135.42,135.39,13.48]
[1767854829084,0.53660024,135.42,135.39,17.65664684]
[1767854829279,7.38413253,135.43,135.4,4.17664684]
[1767854831281,0.53660024,135.43,135.4,0.68665616]
[1767854832282,7.92074545,135.43,135.4,0.68665616]
[1767854834702,0.53660024,135.43,135.4,4.17664684]
[1767854834986,0.65626561,135.46,135.43,0.68665616]
[1767854835165,0.65626561,135.48,135.44,0.68665616]
[1767854835364,109.08657978,135.51,135.47,3.48999068]
[1767854835365,0.53660024,135.49,135.47,3.48999068]
[1767854835571,8.03603065,135.51,135.47,4.17664684]
[1767854835784,0.75626561,135.53,135.49,4.17664684]
[1767854835989,0.75626561,135.53,135.47,7.38152528]
[1767854835990,0.1,135.53,135.51,0.68665616]
[1767854836181,0.1,135.55,135.53,0.68665616]
[1767854836368,0.53778492,135.54,135.48,14.16665616]
[1767854836568,0.53778492,135.54,135.5,4.17664684]
[1767854836787,0.53778492,135.54,135.51,3.48999068]
[1767854837888,0.53778492,135.54,135.48,21.5476338]
[1767854837889,0.65389612,135.53,135.48,21.5476338]
[1767854838071,0.65389612,135.53,135.49,3.48999068]
[1767854838680,0.65389612,135.53,135.49,2.91959568]
[1767854838879,0.65389612,135.53,135.49,2.23293952]
[1767854839277,10.14758158,135.54,135.5,0.68665616]
[1767854839593,0.65506896,135.53,135.49,2.23293952]
[1767854840063,0.65506896,135.53,135.49,2.91959568]
[1767854840981,0.65506896,135.53,135.49,0.68665616]
[1767854841179,0.65506896,135.53,135.49,2.91959568]
[1767854842594,0.65506896,135.53,135.49,2.23293952]
[1767854844080,0.53778492,135.52,135.48,13.48]
[1767854844390,0.53894604,135.5,135.46,2.23293952]
[1767854844592,0.53894604,135.5,135.46,0.68665616]
[1767854844782,0.53894604,135.5,135.45,9.61553098]
[1767854844976,0.53894604,135.5,135.45,10.30218714]
[1767854845184,0.53894604,135.5,135.46,0.68665616]
[1767854845792,7.91908429,135.5,135.46,0.68665616]
[1767854848703,7.91908429,135.5,135.46,2.91959568]
[1767854849900,0.53894604,135.5,135.47,2.23293952]
[1767854850105,0.53894604,135.5,135.47,0.68665616]
[1767854850291,10.55274493,135.52,135.48,0.68665616]
[1767854850486,0.53660024,135.51,135.47,2.91959568]
[1767854851001,0.53660024,135.51,135.48,0.68665616]
[1767854851212,0.53660024,135.51,135.47,10.30123553]
[1767854851582,0.53660024,135.51,135.47,8.06829601]
[1767854852900,2.76953976,135.51,135.47,8.06829601]
[1767854853404,0.53660024,135.51,135.47,8.06829601]
[1767854853598,0.53660024,135.51,135.48,0.68226858]
[1767854854906,0.65506896,135.5,135.45,0.68226858]
[1767854855121,0.53778492,135.49,135.45,0.68226858]
[1767854855484,0.53778492,135.49,135.44,2.9152081]
[1767854855895,0.53778492,135.49,135.46,0.68226858]
[1767854856084,0.53778492,135.49,135.45,10.29775909]
[1767854856301,10.11321462,135.5,135.46,0.68226858]
[1767854856703,0.69112069,135.49,135.45,10.29775909]
[1767854858517,0.69112069,135.49,135.45,8.06481957]
[1767854858727,7.8802751,135.5,135.46,0.68226858]
[1767854863014,0.69112069,135.49,135.46,0.68226858]
[1767854863206,2.92406021,135.49,135.46,0.68226858]
[1767854863713,0.69112069,135.49,135.46,0.68226858]
[1767854863912,2.92406021,135.49,135.46,0.68226858]
[1767854864615,0.69112069,135.49,135.46,0.68226858]
[1767854865989,8.07177132,135.49,135.45,0.68226858]
[1767854869204,0.69112069,135.49,135.45,8.06503532]
[1767854869404,0.69112069,135.49,135.46,0.68226858]
[1767854872321,8.07179707,135.49,135.46,0.68226858]
[1767854874823,10.30473659,135.49,135.46,0.68226858]
[1767854875012,0.68923042,135.47,135.44,0.68226858]
[1767854875212,0.65923043,135.47,135.44,0.68226858]
[1767854876521,2.89216995,135.47,135.44,0.68226858]
[1767854876713,0.65923043,135.47,135.44,0.68226858]
[1767854876908,10.27440102,135.47,135.44,0.68226858]
[1767854877117,10.27440102,135.47,135.42,0.68226858]
[1767854877327,2.73844172,135.44,135.4,14.16226858]
[1767854877499,2.70844173,135.44,135.4,14.16226858]
[1767854877702,2.23293952,135.44,135.39,8.06804045]
[1767854877905,2.23293952,135.44,135.4,0.68226858]
[1767854877906,2.20293953,135.44,135.4,0.68226858]
[1767854878521,9.58637885,135.44,135.4,0.68226858]
[1767854879213,2.23293952,135.43,135.39,0.68226858]
[1767854879412,2.92598886,135.43,135.39,0.68226858]
[1767854879726,2.67372389,135.42,135.39,0.68226858]
[1767854879929,0.69052669,135.41,135.37,0.68226858]
[1767854880432,9.61730435,135.43,135.38,0.68226858]
[1767854880606,10.05808872,135.43,135.38,0.68226858]
[1767854880908,0.69304934,135.42,135.38,0.68226858]
[1767854881252,0.69304934,135.42,135.38,2.9152081]
[1767854881416,0.69304934,135.42,135.38,2.23293952]
[1767854881916,0.69304934,135.42,135.38,2.9152081]
[1767854882114,8.07749318,135.42,135.39,0.65309734]
[1767854882518,0.44078437,135.41,135.38,0.65309734]
[1767854883031,8.10438851,135.42,135.38,0.65309734]
[1767854883431,0.71994467,135.42,135.38,0.65309734]
[1767854884100,0.71994467,135.42,135.39,0.70591588]
[1767854884307,10.28750033,135.44,135.39,0.70591588]
[1767854884818,0.46259756,135.43,135.39,0.70591588]
[1767854886337,7.84651749,135.43,135.39,0.70591588]
[1767854886831,10.07945701,135.43,135.39,0.70591588]
[1767854888633,0.4646609,135.41,135.38,0.70591588]
[1767854888931,9.61751183,135.42,135.38,0.70591588]
[1767854889337,7.38457231,135.42,135.38,0.70591588]
[1767854890031,7.38405383,135.43,135.39,0.70591588]
[1767854891823,9.61699335,135.43,135.39,0.70591588]
[1767854892130,0.66863463,135.42,135.36,7.38762993]
[1767854892340,2.90157415,135.42,135.37,0.70591588]
[1767854892925,10.28654935,135.42,135.37,0.70591588]
[1767854894347,10.28654935,135.42,135.38,0.70591588]
[1767854894518,9.61791472,135.42,135.38,0.70591588]
[1767854894841,7.3849752,135.42,135.38,0.70591588]
[1767854895034,9.61791472,135.42,135.38,0.70591588]
[1767854895230,8.61791472,135.42,135.39,0.70591588]
[1767854895918,2.23293952,135.41,135.39,0.70591588]
[1767854896526,9.05081229,135.42,135.39,0.70591588]
[1767854898139,2.23293952,135.41,135.39,0.70591588]
[1767854898340,0.43525494,135.4,135.36,8.09357625]
[1767854898640,0.66863463,135.4,135.36,11.58909098]
[1767854899033,11.55157697,135.41,135.37,0.70591588]
[1767854899449,0.43289757,135.4,135.37,0.70591588]
[1767854899745,0.66863463,135.39,135.35,11.08353134]
[1767854899923,0.63863464,135.39,135.35,8.29393249]
[1767854900324,0.63863464,135.39,135.36,0.70591588]
[1767854901043,10.8806755,135.41,135.37,0.70591588]
[1767854902142,11.28387308,135.41,135.37,0.70591588]
[1767854904046,10.88127857,135.4,135.37,0.70591588]
[1767854904242,3.49551473,135.43,135.38,0.70591588]
[1767854904425,7.38388835,135.43,135.4,0.70591588]
[1767854905150,6.38388835,135.43,135.4,0.70591588]
[1767854905326,0.67101581,135.44,135.4,0.70591588]
[1767854906051,4.16653054,135.44,135.4,0.70591588]
[1767854906250,11.5500261,135.44,135.4,0.70591588]
[1767854907040,3.49551473,135.43,135.4,0.70591588]
[1767854908247,10.87993717,135.43,135.4,0.70591588]
[1767854908953,11.28313475,135.43,135.4,0.70591588]
[1767854909555,7.78762002,135.43,135.39,0.70591588]
[1767854910752,4.16385236,135.42,135.38,0.70591588]
[1767854911855,7.38497895,135.41,135.38,0.70591588]
[1767854912956,7.38462525,135.42,135.38,0.70591588]
[1767854913144,13.48,135.46,135.4,3.49551473]
[1767854913145,0.72020431,135.45,135.4,3.49551473]
[1767854913346,0.72020431,135.45,135.42,3.49551473]
[1767854913654,0.72020431,135.45,135.41,4.16096985]
[1767854913851,8.10452552,135.43,135.39,4.16096985]
[1767854914057,8.10452552,135.43,135.39,0.66545512]
[1767854914256,0.72020431,135.42,135.39,0.66545512]
[1767854914446,7.38432121,135.43,135.39,0.66545512]
[1767854914642,8.10452552,135.43,135.39,0.66545512]
[1767854916358,8.10452552,135.43,135.39,4.16096985]
[1767854920964,8.10452552,135.43,135.39,0.66545512]
[1767854921147,8.10452552,135.43,135.39,4.16096985]
[1767854921740,8.10452552,135.43,135.39,0.66545512]
[1767854921939,8.10452552,135.43,135.39,4.16096985]
[1767854922155,8.10300239,135.45,135.41,0.66545512]
[1767854922362,0.72020431,135.43,135.4,11.54645051]
[1767854923476,0.72020431,135.43,135.4,10.88099539]
[1767854923773,4.89589502,135.44,135.41,0.66545512]
[1767854925975,0.72020431,135.47,135.43,3.49551473]
[1767854926853,8.10226936,135.47,135.43,3.49551473]
[1767854927169,0.72020431,135.46,135.43,3.49551473]
[1767854928566,0.72020431,135.46,135.42,3.49551473]
[1767854931075,0.72020431,135.45,135.4,20.86521351]
[1767854931366,0.72020431,135.45,135.41,10.88045422]
[1767854932658,0.72020431,135.45,135.41,7.38493949]
[1767854932858,0.72020431,135.45,135.41,10.82045422]
[1767854933665,8.10302022,135.45,135.4,20.86532263]
[1767854933868,8.10302022,135.45,135.41,3.49551473]
[1767854934068,0.72020431,135.44,135.4,13.48]
[1767854934266,0.72020431,135.44,135.4,16.97551473]
[1767854939690,0.72020431,135.44,135.41,3.49551473]
[1767854940072,8.10269922,135.46,135.43,3.49551473]
[1767854940397,0.72020431,135.46,135.43,3.37551473]
[1767854940558,8.10201051,135.47,135.44,3.49551473]
[1767854940761,0.72020431,135.46,135.43,3.49551473]
[1767854941660,0.72020431,135.47,135.44,3.49551473]
[1767854943072,0.72020431,135.47,135.43,3.49551473]
[1767854943386,0.72020431,135.47,135.41,25.84691314]
[1767854943587,0.72020431,135.47,135.43,3.49551473]
[1767854945714,0.72020431,135.47,135.43,10.87936376]
[1767854946173,0.72020431,135.47,135.43,7.38384903]
[1767854946380,0.72020431,135.47,135.43,10.87936376]
[1767854950198,0.72020431,135.47,135.44,3.49551473]
[1767854950896,0.72020431,135.47,135.43,3.49551473]
[1767854952491,0.72020431,135.47,135.43,10.87935447]
[1767854954888,8.08072222,135.48,135.43,10.87935447]
[1767854955083,0.69932848,135.47,135.43,10.87935447]
[1767854956108,0.69932848,135.47,135.44,3.49551473]
[1767854957814,0.69932848,135.46,135.38,61.9]
[1767854957994,0.69932848,135.43,135.39,7.38572288]
[1767854958199,0.69932848,135.43,135.39,10.88123761]
[1767854959313,0.69932848,135.43,135.38,24.36198968]
[1767854959491,0.69932848,135.43,135.38,10.88198968]
[1767854959686,0.69932848,135.43,135.38,24.36198968]
[1767854960087,0.69932848,135.42,135.38,13.48]
[1767854960310,0.69932848,135.42,135.38,16.97551473]
[1767854960511,0.69932848,135.42,135.38,15.71650555]
[1767854960712,0.69932848,135.42,135.38,23.10308883]
[1767854962412,0.59932848,135.41,135.38,13.41583403]
[1767854962708,0.099,135.4,135.36,7.38768708]
[1767854963195,2.23650555,135.41,135.37,0.65451842]
[1767854964986,9.62159415,135.41,135.37,0.65451842]
[1767854965607,2.23650555,135.4,135.37,0.65451842]
[1767854966316,2.23650555,135.4,135.36,0.65451842]
[1767854966715,9.62206434,135.4,135.36,0.65451842]
[1767854967419,7.38555879,135.4,135.36,0.65451842]
[1767854967589,9.62206434,135.4,135.36,0.65451842]
[1767854969014,2.23650555,135.4,135.36,0.65451842]
[1767854969516,9.62210177,135.4,135.36,0.65451842]
[1767854970494,7.38559622,135.4,135.36,0.65451842]
[1767854970912,2.23650555,135.4,135.36,0.65451842]
[1767854971118,2.23650555,135.41,135.36,0.65451842]
[1767854972316,2.23650555,135.41,135.35,9.82460663]
[1767854972496,2.23650555,135.37,135.35,0.2]
[1767854973022,2.23650555,135.36,135.33,0.91391507]
[1767854974317,9.6243043,135.36,135.33,0.91391507]
[1767854974905,9.5943043,135.36,135.33,0.91391507]
[1767854975520,7.38779875,135.36,135.33,0.91391507]
[1767854976602,18.46746379,135.38,135.33,0.91391507]
[1767854976801,2.23650555,135.36,135.33,0.91391507]
[1767854979325,9.62432337,135.36,135.33,0.91391507]
[1767854979829,7.38781782,135.36,135.33,0.91391507]
[1767854980129,9.62432337,135.36,135.33,0.91391507]
[1767854980819,7.38716111,135.37,135.33,0.91391507]
[1767854981012,2.23650555,135.36,135.33,0.91391507]
[1767854981602,7.38716111,135.37,135.33,0.91391507]
[1767854982021,2.23650555,135.35,135.33,0.91391507]
[1767854982224,1.99525944,135.35,135.33,0.91391507]
[1767854983521,7.38800424,135.36,135.33,0.91391507]
[1767854983716,2.23650555,135.35,135.33,0.91391507]
[1767854983909,7.38800424,135.36,135.31,0.2]
[1767854984122,2.23650555,135.33,135.31,0.2]
[1767854984308,2.23650555,135.33,135.31,0.91391507]
[1767854984824,25.85727137,135.36,135.31,0.91391507]
[1767854985026,2.23650555,135.33,135.31,0.91391507]
[1767854985530,9.62592282,135.33,135.31,0.91391507]
[1767854985718,2.23650555,135.33,135.31,0.91391507]
[1767854986714,2.23650555,135.32,135.31,0.2]
[1767854987120,2.23650555,135.32,135.3,0.2]
[1767854988033,2.23650555,135.32,135.3,0.91391507]
[1767854988528,9.62618042,135.33,135.3,0.91391507]
[1767854988838,2.23650555,135.33,135.31,0.71391507]
[1767854989235,9.62549661,135.34,135.31,0.71391507]
[1767854989423,7.38899106,135.34,135.31,0.71391507]
[1767854989731,2.23650555,135.35,135.31,0.71391507]
[1767854989930,2.23650555,135.36,135.31,0.71391507]
[1767854990318,9.62460562,135.36,135.31,0.71391507]
[1767854990525,2.23650555,135.35,135.31,0.71391507]
[1767854992217,9.62481964,135.35,135.31,0.71391507]
[1767854995737,2.23650555,135.35,135.31,0.71391507]
[1767854996427,7.38770685,135.36,135.31,0.71391507]
[1767854996629,2.23650555,135.35,135.31,0.71391507]
[1767854998038,9.62485151,135.35,135.31,0.71391507]
[1767854998937,32.25299927,135.37,135.31,0.71391507]
[1767854998938,9.62443369,135.36,135.32,0.71391507]
[1767855000637,109.11231699,135.43,135.36,0.71391507]
[1767855000836,109.11231699,135.43,135.36,2.23650555]
[1767855000837,2.29650551,135.41,135.36,2.23650555]
[1767855001214,2.29650551,135.4,135.35,2.23650555]
[1767855001639,2.23650555,135.39,135.34,2.23650555]
[1767855001829,0.05999996,135.38,135.34,2.23650555]
[1767855002031,7.38552437,135.4,135.34,0.66444579]
[1767855002343,2.23650555,135.39,135.34,0.66444579]
[1767855003542,9.62202992,135.4,135.35,8.10821222]
[1767855004043,9.62202992,135.4,135.36,0.71995955]
[1767855004539,2.23650555,135.41,135.37,0.71995955]
[1767855004722,2.2635424,135.41,135.37,0.6929227]
[1767855005319,2.23650555,135.41,135.37,0.6929227]
[1767855006020,2.2635424,135.41,135.37,0.6929227]
[1767855006328,2.23650555,135.4,135.37,0.6929227]
[1767855006936,7.41213509,135.41,135.37,0.6929227]
[1767855006937,9.64864064,135.41,135.37,0.6929227]
[1767855009643,9.64864064,135.41,135.37,0.65872102]
[1767855009818,7.38509824,135.41,135.37,0.65872102]
[1767855010025,7.38466914,135.42,135.38,2.23650555]
[1767855010431,7.38466914,135.42,135.37,9.62365808]
[1767855010839,0.06123853,135.41,135.36,9.62405323]
[1767855011644,9.62117469,135.42,135.37,0.71995955]
[1767855011843,9.68241322,135.42,135.37,0.71995955]
[1767855012045,7.44590767,135.42,135.37,0.71995955]
[1767855012234,18.45899764,135.44,135.37,0.71995955]
[1767855012437,9.68132362,135.44,135.4,0.71995955]
[1767855013245,2.23650555,135.43,135.4,0.6869665]
[1767855014041,7.44481807,135.44,135.4,0.6869665]
[1767855014344,9.62064185,135.43,135.4,0.6869665]
[1767855015443,9.68108725,135.44,135.4,0.6869665]
[1767855016146,2.33073713,135.43,135.4,0.6869665]
[1767855016362,2.39152161,135.41,135.36,20.86736567]
[1767855016562,0.7246162,135.4,135.36,23.10387122]
[1767855016745,0.7246162,135.4,135.36,13.48]
[1767855017048,0.71892019,135.38,135.34,9.6252484]
[1767855017419,7.04732719,135.38,135.34,2.23650555]
[1767855017824,7.04732719,135.38,135.33,7.38914163]
[1767855018026,7.04732719,135.38,135.34,2.23650555]
[1767855018323,7.04732719,135.38,135.33,10.34560673]
[1767855019547,0.62054297,135.37,135.33,10.34560673]
[1767855020021,0.099,135.36,135.33,2.23650555]
[1767855020225,9.62366869,135.37,135.33,0.71995955]
[1767855020751,11.49996983,135.37,135.33,0.71995955]
[1767855022245,3.49747915,135.34,135.3,0.2]
[1767855022450,29.35448022,135.36,135.3,0.2]
[1767855022451,0.36354694,135.33,135.3,0.2]
[1767855022745,25.85700107,135.36,135.3,0.91995955]
[1767855022929,16.97747915,135.35,135.3,4.4174387]
[1767855023126,16.97747915,135.35,135.3,0.91995955]
[1767855023328,13.48,135.35,135.3,0.91995955]
[1767855023844,3.49747915,135.33,135.3,0.91995955]
[1767855024057,3.49747915,135.34,135.3,0.2]
[1767855024252,10.8867609,135.34,135.3,0.2]
[1767855024446,11.47730388,135.34,135.3,0.91995955]
[1767855025845,0.0693,135.33,135.3,0.91995955]
[1767855026152,3.85110229,135.33,135.3,0.91995955]
[1767855026563,11.24094669,135.33,135.3,0.91995955]
[1767855026755,7.74346754,135.33,135.3,0.91995955]
[1767855027360,0.58533056,135.32,135.3,1e-08]
[1767855027537,3.56677915,135.32,135.3,1e-08]
[1767855028941,11.47324648,135.31,135.29,1e-08]
[1767855029143,7.97576733,135.31,135.29,1e-08]
[1767855030066,7.39043677,135.31,135.29,1e-08]
[1767855030448,0.28432314,135.3,135.29,1e-08]
[1767855030759,7.45973677,135.31,135.29,1e-08]
[1767855031855,7.39043677,135.31,135.29,1e-08]
[1767855033068,7.45973677,135.31,135.29,1e-08]